Cogmind - Beta 16 @@@ ROGUE MODE // 2025.12.30 @ 13:17:58 Player: CloudSeaKing Result: Destroyed by P-70 Sage with Tesla Rifle Performance ------------- Evolutions (6) 3000 Regions Visited (15) 3000 Robots Destroyed (158) 790 Value Destroyed (4322) 4322 Prototype IDs (41) 820 Alien Tech Used (0) 0 Bonus (1128) 1128 TOTAL SCORE: 13060 Bonus ------- High Alert Combat Kills 28 Entered DSFs 500 Aligned with FarCom 300 Met Data Miner 300 Cogmind --------- Core Integrity 0/1150 Matter 147/300 Energy 99/100 System Corruption 15% Temperature Cool (0) Movement Core (50) Location -4/Factory Parts ------- > --- POWER (2) -------- (None) > --- PROPULSION (6) --- (None) > --- UTILITY (9) ------ (None) > --- WEAPON (2) ------- (None) > --- INVENTORY (5) ---- Improved Fusion Compressor Matter Filter Hardened Medium Armor Plating Hardened Medium Armor Plating Peak State ------------ > --- POWER ------------ Light Deuterium Engine Angular Momentum Engine > --- PROPULSION ------- Improved Flight Unit Field Propulsion Drive Flying Fortress v7 > --- UTILITY ---------- Improved Heat Sink Improved Trap Scanner ECM Suite Advanced Reaction Control System Improved Utility Shielding Hacking Suite Hacking Suite Improved Hacking Suite System Shield > --- WEAPON ----------- Railgun Railgun > --- INVENTORY -------- Improved Fusion Compressor Matter Filter Hardened Medium Armor Plating Hardened Medium Armor Plating Missile Launcher [Rating: 98] Favorites ----------- Power Improved Ion Engine Engine Improved Ion Engine Power Core Light Nuclear Core Propulsion Light Treads Treads Light Treads Leg Improved Aluminum Leg Hover Unit Antigrav System Flight Unit Improved Flight Unit Utility Seismic Detector Device Seismic Detector Storage Huge Storage Unit Hackware Hacking Suite Protection Medium Armor Plating Weapon Shotgun Ballistic Gun Shotgun Launcher Missile Launcher Slashing Weapon Scythe Build | -11 -10 -10 -9 -9 -9 -8 -8 -7 -6 -6 -6 -5 -5 -5 -4 ------- Run | Yrd Mat Min Mat Min Exi Min Mat Fac Fac Low Dat Pro Fac DSF Fac Slots Evolved 12 | . . . 2 . . . 2 2 2 . . . 2 . 2 Power 1 | . . . . . . . . . . . . . 1 . . Propulsion 4 | . . . 1 . . . 1 . 1 . . . . . 1 Utility 7 | . . . 1 . . . 1 2 1 . . . 1 . 1 Weapon . | . . . . . . . . . . . . . . . . Parts Attached 89 | 7 12 . 19 . . 3 20 10 5 1 . 1 2 . 9 Power 14 | 1 4 . 4 . . . 2 . 1 . . . 1 . 1 Engine 13 | 1 4 . 4 . . . 1 . 1 . . . 1 . 1 Core 1 | . . . . . . . 1 . . . . . . . . Reactor . | . . . . . . . . . . . . . . . . Propulsion 23 | 2 4 . 7 . . . 6 1 1 . . . . . 2 Treads 18 | 2 4 . 6 . . . 6 . . . . . . . . Leg 1 | . . . 1 . . . . . . . . . . . . Wheel . | . . . . . . . . . . . . . . . . Hover 1 | . . . . . . . . . . . . . . . 1 Flight 3 | . . . . . . . . 1 1 . . . . . 1 Utility 31 | 2 1 . 4 . . 1 9 5 3 1 . . 1 . 4 Device 9 | 1 . . . . . . 3 2 1 . . . . . 2 Storage 5 | 1 1 . 2 . . . 1 . . . . . . . . Processor . | . . . . . . . . . . . . . . . . Hackware 5 | . . . . . . . 1 1 . . . . 1 . 2 Protection 12 | . . . 2 . . 1 4 2 2 1 . . . . . Artifact . | . . . . . . . . . . . . . . . . Weapon 21 | 2 3 . 4 . . 2 3 4 . . . 1 . . 2 Energy Gun . | . . . . . . . . . . . . . . . . Energy Cannon . | . . . . . . . . . . . . . . . . Ballistic Gun 17 | 2 2 . 4 . . 1 3 3 . . . . . . 2 Ballistic Cannon . | . . . . . . . . . . . . . . . . Launcher 2 | . . . . . . 1 . . . . . 1 . . . Special Weapon . | . . . . . . . . . . . . . . . . Impact Weapon . | . . . . . . . . . . . . . . . . Slashing Weapon 2 | . 1 . . . . . . 1 . . . . . . . Piercing Weapon . | . . . . . . . . . . . . . . . . Special Melee Weapon . | . . . . . . . . . . . . . . . . Unidentified Prototypes . | . . . . . . . . . . . . . . . . Parts Lost 33 | . 5 . 5 . . 2 7 . . . . . . 3 11 Power 3 | . 1 . . . . . . . . . . . . 1 1 Propulsion 10 | . 2 . 2 . . 1 2 . . . . . . . 3 Utility 12 | . . . 1 . . 1 4 . . . . . . 2 4 Weapon 8 | . 2 . 2 . . . 1 . . . . . . . 3 Highest Loss Streak 8 | . 4 . 2 . . 2 3 . . . . . . 3 8 To Critical Strikes . | . . . . . . . . . . . . . . . . Average Backups 18 | 3 13 15 23 25 23 20 21 6 4 5 5 5 4 5 4 Power 2 | . 2 2 3 3 2 2 2 1 1 1 1 1 . . . Propulsion 2 | 2 2 2 2 5 4 4 3 1 . . . . . 1 . Utility 7 | . 5 7 9 9 8 7 8 1 2 3 3 3 2 3 2 Weapon 5 | . 2 4 7 8 7 7 7 2 1 1 1 1 1 1 . Tool/Special . | . . . . . . . . . . . . . . . . Unused Backups 62 | . 13 . 23 . 3 . 6 8 1 . . . . 1 7 Power 13 | . 4 . 4 . 1 . 3 . . . . . . . 1 Propulsion 10 | . 4 . 2 . 1 . 1 1 . . . . . 1 . Utility 17 | . 2 . 5 . 1 . . 3 1 . . . . . 5 Weapon 21 | . 3 . 11 . . . 2 4 . . . . . . 1 Tool/Special 1 | . . . 1 . . . . . . . . . . . . Average Slot Usage (%) 95 | . 99 100 98 96 100 99 98 75 79 80 80 80 81 75 68 Engine 9 | . 13 14 10 11 11 11 8 . 1 6 6 6 11 9 6 Treads 26 | . 27 28 31 29 33 32 35 2 . . . . . . . Flight 1 | . . . . . . . . 6 13 13 13 13 11 11 9 Device 10 | . 14 14 10 11 11 3 2 13 13 13 13 13 11 11 18 Storage 9 | . 14 14 11 11 11 11 12 1 . . . . . . . Hackware 3 | . . . . . . . 4 14 13 13 13 13 16 17 18 Protection 10 | . . . 10 11 11 18 15 14 19 20 20 20 17 13 4 Ballistic Gun 18 | . 25 14 21 22 22 20 17 8 6 6 6 4 . . 6 Slashing Weapon 1 | . 2 14 . . . . . 5 6 6 6 6 5 4 . Peak Build Rating 98 | 7 8 8 19 19 21 21 28 56 71 72 72 72 78 78 98 Average Rating 25 | 5 7 8 17 18 20 20 26 53 64 71 72 70 77 73 66 On Entrance 38 | . 7 8 8 19 19 21 21 26 56 71 72 72 72 78 62 Avg Prop Armor Cover (%) 2 | . . . 4 . . . . . . . . . . . 1 Naked Turns 91 | . . . . . . . . . . . . . . . 91 Heaviest Build 109 | 14 30 30 101 101 101 107 109 101 34 38 38 41 46 46 41 Greatest Support 86 | 40 40 40 63 63 63 63 86 86 55 55 55 55 55 55 62 Greatest Overweight (x) 8 | 3 . . 2 2 1 1 1 1 . . . . . . 8 Average Overweight (x) . | . . . . 1 1 1 1 . . . . . . . . Largest Inventory Capacity 25 | 8 15 15 25 25 25 25 25 25 5 5 5 5 5 5 5 Average Capacity 19 | 7 13 15 23 25 25 25 25 7 5 5 5 5 5 5 5 Most Carried 25 | 6 15 15 25 25 25 25 25 25 5 5 5 5 5 5 5 Average Carried 19 | 3 13 15 23 25 24 23 24 6 4 5 5 5 4 5 4 Final Capacity 25 | 8 15 15 25 25 25 25 25 5 5 5 5 5 5 5 5 Final Carried 25 | 6 15 15 25 25 25 23 25 5 5 5 5 5 5 5 4 Class Distribution -------------------- 53% | Scavenger-Mutant 29% | Mutant 15% | Hacker-Mutant Dominant Class ---------------- Mutant | -10/Materials Mutant | -10/Mines Scavenger-Mutant | -9/Materials Mutant | -9/Mines Mutant | -9/Exiles Scavenger-Mutant | -8/Mines Scavenger-Mutant | -8/Materials Hacker-Mutant | -7/Factory Hacker-Mutant | -6/Factory Hacker-Mutant | -6/Lower Caves Hacker-Mutant | -6/Data Miner Hacker-Mutant | -5/Proximity Caves Hacker-Mutant | -5/Factory Hacker-Mutant | -5/DSF Hacker-Mutant | -4/Factory Resources | -11 -10 -10 -9 -9 -9 -8 -8 -7 -6 -6 -6 -5 -5 -5 -4 ----------- Run | Yrd Mat Min Mat Min Exi Min Mat Fac Fac Low Dat Pro Fac DSF Fac Matter Collected 3947 | 227 575 10 1218 63 29 128 822 . 122 47 . 163 96 160 287 Remotely . | . . . . . . . . . . . . . . . . Salvage Created 4975 | 12 933 17 1660 75 . 133 1293 48 122 . . 134 113 278 157 Parts 328 | 4 71 1 115 2 . 5 60 3 16 . . 12 12 17 10 Haulers Intercepted 11 | . 2 . 5 . . . 3 1 . . . . . . . Recyclers Shooed 9 | 1 2 . 4 . . 1 . . 1 . . . . . . Parts Field Recycled . | . . . . . . . . . . . . . . . . Retrieved Matter . | . . . . . . . . . . . . . . . . Parts Self-Destructed 11 | . . . . . . . . . . . . 11 . . . Prevented . | . . . . . . . . . . . . . . . . Parts Restored . | . . . . . . . . . . . . . . . . Kills | -11 -10 -10 -9 -9 -9 -8 -8 -7 -6 -6 -6 -5 -5 -5 -4 ------- Run | Yrd Mat Min Mat Min Exi Min Mat Fac Fac Low Dat Pro Fac DSF Fac Combat Hostiles Destroyed 104 | . 21 . 32 2 . 5 22 . . . . 6 . 11 5 Melee 3 | . . . . . . . . . . . . 3 . . . Guns 80 | . 21 . 32 2 . 2 21 . . . . . . . 2 AOE 21 | . . . . . . 3 1 . . . . 3 . 11 3 Classes Destroyed 16 | 1 7 . 1 1 . . 3 . . . . 1 . 2 . Worker 10 | . 1 1 2 . . . 4 . 1 . . . 1 . . Builder 18 | . 1 . 4 . . . 4 . 5 . . . 4 . . Tunneler 3 | 1 1 . 1 . . . . . . . . . . . . Hauler 11 | . 2 . 5 . . . 3 1 . . . . . . . Recycler 3 | . 1 . 1 . . . 1 . . . . . . . . Operator 6 | . 2 . 3 . . . 1 . . . . . . . . Watcher 3 | . . . . . . . 3 . . . . . . . . Swarmer 20 | . 6 . 6 . . . . . . . . 5 . . 3 Cutter 6 | . . . . . . . . . . . . . . 6 . Grunt 50 | . 15 . 16 1 . 3 11 . . . . . . 4 . Brawler 1 | . . . . . . . 1 . . . . . . . . Duelist 4 | . . . . 1 . 2 1 . . . . . . . . Sentry 18 | . . . 10 . . . 8 . . . . . . . . Specialist 1 | . . . . . . . . . . . . . . 1 . Hunter 1 | . . . . . . . 1 . . . . . . . . Programmer 3 | . . . . . . . . . . . . 1 . . 2 Best Kill Streak 6 | 1 5 1 6 2 . 2 3 1 3 . . 3 4 6 3 Combat Bots Only 6 | . 5 . 6 2 . 2 3 . . . . 3 . 6 3 Max Kills in Single Turn 3 | 1 1 1 2 1 . 2 2 1 1 . . 2 1 3 3 Gunslinging 1 | . . . 1 . . . . . . . . . . . . Exploded 3 | . . . . . . 2 1 . . . . 2 . 3 3 Melee 1 | . . . . . . . . . . . . 1 . . . Uniques/NPCs Destroyed . | . . . . . . . . . . . . . . . . Combat | -11 -10 -10 -9 -9 -9 -8 -8 -7 -6 -6 -6 -5 -5 -5 -4 -------- Run | Yrd Mat Min Mat Min Exi Min Mat Fac Fac Low Dat Pro Fac DSF Fac Hostile Shots Fired 666 | . 104 . 153 4 . 19 116 . 9 . . 25 . 61 175 Missed 214 | . 28 . 48 . . 4 23 . 6 . . 11 . 35 59 Hits 452 | . 76 . 105 4 . 15 93 . 3 . . 14 . 26 116 Melee 14 | . . . . 4 . . 2 . . . . . . 8 . Projectile 438 | . 76 . 105 . . 15 91 . 3 . . 14 . 18 116 AOE 3 | . . . . . . . . . . . . . . 3 . Critical Strikes 18 | . . . 2 1 . 1 5 . . . . . . 4 5 Actively Blocked 1 | . . . . . . . 1 . . . . . . . . Part Disruptions 1 | . . . . . . . . . . . . . . . 1 Damage Taken 7902 | . 884 . 1329 133 . 272 1589 . 86 . . 257 . 1124 2228 Core 1701 | . 108 . 117 . . 13 136 . . . . 14 . 158 1155 Absorbed by Shields . | . . . . . . . . . . . . . . . . Redirected to Shielding 430 | . . . . . . . 324 . . . . . . 17 89 Regen/Repaired (Parts) 416 | . . . 298 . . . 90 . . . . . . . 28 Core Remaining (%) 82 | 100 . 56 . . . 67 75 100 . . . 98 . 84 . Volleys Fired 385 | 3 101 . 116 4 . 19 96 1 . . . 2 . 25 18 Largest 2 | 2 2 . 2 2 . 2 2 1 . . . 1 . 1 2 Hottest 70 | 40 40 . 46 46 . 56 58 25 . . . 36 . 36 70 Shots Fired 697 | 6 181 . 229 8 . 26 185 1 . . . 2 . 25 34 Gun 658 | 6 181 . 229 8 . 19 182 1 . . . . . . 32 Cannon . | . . . . . . . . . . . . . . . . Launcher 39 | . . . . . . 7 3 . . . . 2 . 25 2 Special . | . . . . . . . . . . . . . . . . Kinetic 658 | 6 181 . 229 8 . 19 182 1 . . . . . . 32 Thermal . | . . . . . . . . . . . . . . . . Explosive 39 | . . . . . . 7 3 . . . . 2 . 25 2 Electromagnetic . | . . . . . . . . . . . . . . . . Robot Hit Streak 19 | 3 13 . 15 4 . 6 19 16 . . . 17 . 7 10 Robot Miss Streak 6 | 1 6 . 5 1 . 3 6 . . . . 1 . 2 3 Penetration Max . | . . . . . . . . . . . . . . . . Secondary Targets 2 | . . . 1 . . . 1 . . . . . . . . Max Gunslinging Chain 1 | . . . 1 . . . 1 . . . . . . . . Shots Hit Robots 533 | 4 116 1 180 7 . 16 141 2 9 . . 8 12 18 19 Core Hits 307 | 2 51 . 92 5 . 18 77 1 5 . . 9 2 37 8 Critical Kills 4 | . . . 2 . . . 2 . . . . . . . . Critical Parts Destroyed 4 | . . . 2 . . . 2 . . . . . . . . Critical Strikes 9 | . . . 4 . . . 5 . . . . . . . . Destroy 9 | . . . 4 . . . 5 . . . . . . . . Melee Attacks 91 | . 2 1 17 . . . 6 1 13 . . 9 32 10 . Impact . | . . . . . . . . . . . . . . . . Slashing 91 | . 2 1 17 . . . 6 1 13 . . 9 32 10 . Piercing . | . . . . . . . . . . . . . . . . Sneak Attacks 20 | . 2 1 2 . . . . . 8 . . . 7 . . Combat Hostiles . | . . . . . . . . . . . . . . . . Follow-up Attacks . | . . . . . . . . . . . . . . . . Damage Inflicted 12718 | 42 1343 51 3004 83 . 685 2858 49 552 . . 513 629 2017 892 Guns 7433 | 42 1223 . 2777 83 . 202 2553 14 . . . . . . 539 Cannons . | . . . . . . . . . . . . . . . . Explosions 3310 | . . . . . . 476 192 . . . . 293 . 2017 332 Melee 1679 | . 100 51 92 . . . . 35 552 . . 220 629 . . Ramming 296 | . 20 . 135 . . 7 113 . . . . . . . 21 Kinetic 7433 | 42 1223 . 2777 83 . 202 2553 14 . . . . . . 539 Thermal . | . . . . . . . . . . . . . . . . Explosive 3310 | . . . . . . 476 192 . . . . 293 . 2017 332 Electromagnetic . | . . . . . . . . . . . . . . . . Impact . | . . . . . . . . . . . . . . . . Slashing 1679 | . 100 51 92 . . . . 35 552 . . 220 629 . . Piercing . | . . . . . . . . . . . . . . . . Highest Corruption 15 | . . . 1 1 1 1 . . . . . 1 . . 15 Average Corruption 1 | . . . 1 1 1 1 . . . . . 1 . . 8 Corruption Purged . | . . . . . . . . . . . . . . . . Corruption Blocked . | . . . . . . . . . . . . . . . . Effects 51 | . . . 11 1 9 9 . . . . . 2 . . 19 Message Errors 15 | . . . 4 . 3 4 . . . . . 1 . . 3 Matter Fused 14 | . . . 4 1 2 2 . . . . . . . . 5 Heat Flow Errors 2 | . . . . . 1 . . . . . . . . . 1 Energy Discharges 1 | . . . 1 . . . . . . . . . . . . Data Loss (minor) 10 | . . . 1 . 3 2 . . . . . 1 . . 3 Data Loss (major) 1 | . . . . . . 1 . . . . . . . . . Misfires 2 | . . . 1 . . . . . . . . . . . 1 Misdirections 6 | . . . . . . . . . . . . . . . 6 Overload Shots . | . . . . . . . . . . . . . . . . Overflow Damage 331 | . 19 11 . . . . . . 124 . . 22 112 36 7 Projectiles . | . . . . . . . . . . . . . . . . Explosions 60 | . . . . . . . . . . . . 17 . 36 7 Melee 271 | . 19 11 . . . . . . 124 . . 5 112 . . Knockbacks 2 | . . . 1 . . . 1 . . . . . . . . Impact 2 | . . . 1 . . . 1 . . . . . . . . Kinetic . | . . . . . . . . . . . . . . . . Secondary . | . . . . . . . . . . . . . . . . Self-Inflicted Damage 307 | . . . . . . 35 47 . . . . . . 216 9 Shots 7 | . . . . . . 1 1 . . . . . . 5 . Rammed 31 | . 3 . 14 . . 2 9 . . . . . . . 3 Targets Rammed 37 | . 4 . 15 . . 2 13 . . . . . . . 3 Kicked . | . . . . . . . . . . . . . . . . Crushed 6 | . 1 . 1 . . . 4 . . . . . . . . Highest Temperature 155 | . 18 . 23 . 155 43 23 . . . . . . . 115 Average Temperature 12 | . 7 . 7 . 83 16 5 . . . . . . . 47 Received Heat Transfer 1994 | . 384 . 546 . . 153 603 . 12 . . 9 . 69 218 Siege Activations . | . . . . . . . . . . . . . . . . Martial Activations . | . . . . . . . . . . . . . . . . Shielding Activations . | . . . . . . . . . . . . . . . . Robots Disrupted . | . . . . . . . . . . . . . . . . Combat Hostiles . | . . . . . . . . . . . . . . . . Robots Corrupted . | . . . . . . . . . . . . . . . . Combat Hostiles . | . . . . . . . . . . . . . . . . Parts Fried . | . . . . . . . . . . . . . . . . Impact Corruptions . | . . . . . . . . . . . . . . . . Robots Melted . | . . . . . . . . . . . . . . . . Combat Hostiles . | . . . . . . . . . . . . . . . . Parts Melted . | . . . . . . . . . . . . . . . . Heat Transferred . | . . . . . . . . . . . . . . . . Parts Sabotaged . | . . . . . . . . . . . . . . . . Parts Stolen . | . . . . . . . . . . . . . . . . Parts Stripped . | . . . . . . . . . . . . . . . . Power Chain Reactions . | . . . . . . . . . . . . . . . . Alert | -11 -10 -10 -9 -9 -9 -8 -8 -7 -6 -6 -6 -5 -5 -5 -4 ------- Run | Yrd Mat Min Mat Min Exi Min Mat Fac Fac Low Dat Pro Fac DSF Fac Maximum Alert Level 2 | . 1 . 1 . . . . . . . . . . 2 1 Low Security (%) 87 | 100 89 100 72 100 . 100 100 100 100 . . . 100 69 89 Level 1 12 | . 10 . 27 . . . . . . . . . . 22 10 Level 2 . | . . . . . . . . . . . . . . 8 . Level 3 . | . . . . . . . . . . . . . . . . Level 4 . | . . . . . . . . . . . . . . . . Level 5 . | . . . . . . . . . . . . . . . . High Security . | . . . . . . . . . . . . . . . . Max Security . | . . . . . . . . . . . . . . . . Sterilizations 1 | . . . . . . . . . . . . . . 1 . Peak Influence 444 | 5 216 70 340 182 . 88 189 77 15 . . . 84 444 233 Initial 233 | . . 70 . 132 . . . 77 . . . . 84 2 233 Average 89 | . 102 21 117 166 . 13 68 30 1 . . . 20 179 143 Influence Increases 3912 | 5 634 5 982 50 . 176 788 29 34 . . 215 119 472 403 Destroy 0b10 Robot/C 2080 | . 420 . 640 40 . 100 440 . . . . 120 . 220 100 Destroy 0b10 Robot/NC 280 | 5 40 5 80 . . . 80 5 30 . . . 25 10 . Destroy Leader 568 | . 104 . 210 10 . 20 152 2 . . . 20 . 30 20 Successful Hack 114 | . 40 . 15 . . . 7 22 . . . . 13 . 17 Disable Machine 75 | . . . . . . 15 15 . . . . . . 15 30 Destroy Structure 300 | . . . 7 . . 41 34 . 4 . . . 36 152 26 Partial Spotted 30 | . . . . . . . . . . . . . 15 . 15 Lose Combat Pursuer 465 | . 30 . 30 . . . 60 . . . . 75 30 45 195 Influence Decreases 3869 | 5 452 187 642 238 152 176 616 201 29 5 . 80 251 31 804 Entered New Map 833 | . . 112 . 208 152 . . 95 . 3 . . 51 1 211 Time Decay 2577 | 5 402 75 592 30 . 156 566 106 29 2 . 80 200 . 334 Lost Part 309 | . 50 . 50 . . 20 50 . . . . . . 30 109 Purge Threat 150 | . . . . . . . . . . . . . . . 150 Squads Dispatched 20 | . 7 . 4 . . . 3 . . . . . . 3 3 Investigation 5 | . 3 . . . . . 2 . . . . . . . . Extermination 2 | . . . . . . . . . . . . . . . 2 Reinforcement 13 | . 4 . 4 . . . 1 . . . . . . 3 1 Assault . | . . . . . . . . . . . . . . . . Garrison . | . . . . . . . . . . . . . . . . Intercept . | . . . . . . . . . . . . . . . . Searches Triggered . | . . . . . . . . . . . . . . . . Construction Impeded 1 | . . . . . . . . . . . . . . . 1 Haulers Reinforced . | . . . . . . . . . . . . . . . . Active Scanning Responses . | . . . . . . . . . . . . . . . . Cargo Convoy Interrupts . | . . . . . . . . . . . . . . . . Stealth | -11 -10 -10 -9 -9 -9 -8 -8 -7 -6 -6 -6 -5 -5 -5 -4 --------- Run | Yrd Mat Min Mat Min Exi Min Mat Fac Fac Low Dat Pro Fac DSF Fac Distress Signals 8 | . 1 . 2 . . . 3 . 1 . . . 1 . . Communications Jammed . | . . . . . . . . . . . . . . . . Distress Signals . | . . . . . . . . . . . . . . . . Times Spotted 210 | . 43 . 66 1 . 6 43 . 3 . . 11 1 13 23 Peak Tracking Total 10 | . 7 . 6 1 . 3 4 . 4 . . 5 3 5 10 Tactical Retreats 17 | . 1 . 2 . . . 4 . 2 . . 2 1 2 3 ECM-based Alert Blocks 8 | . . . . . . . . . 5 . . 3 . . . Traps | -11 -10 -10 -9 -9 -9 -8 -8 -7 -6 -6 -6 -5 -5 -5 -4 ------- Run | Yrd Mat Min Mat Min Exi Min Mat Fac Fac Low Dat Pro Fac DSF Fac Traps Triggered 9 | . 6 . 1 . . . . . 1 . . . 1 . . Indirectly . | . . . . . . . . . . . . . . . . Trap Hack Attempts . | . . . . . . . . . . . . . . . . Triggered . | . . . . . . . . . . . . . . . . Disarmed . | . . . . . . . . . . . . . . . . Reprogrammed . | . . . . . . . . . . . . . . . . Reused . | . . . . . . . . . . . . . . . . Traps Extracted . | . . . . . . . . . . . . . . . . Installed . | . . . . . . . . . . . . . . . . Triggered . | . . . . . . . . . . . . . . . . Machines | -11 -10 -10 -9 -9 -9 -8 -8 -7 -6 -6 -6 -5 -5 -5 -4 ---------- Run | Yrd Mat Min Mat Min Exi Min Mat Fac Fac Low Dat Pro Fac DSF Fac Machines Disabled 6 | . 1 . . . . 1 1 . . . . . . 1 2 Max in Single Turn 1 | . 1 . . . . 1 1 . . . . . . 1 1 Machines Repaired . | . . . . . . . . . . . . . . . . Machines Dismantled . | . . . . . . . . . . . . . . . . Machines Sabotaged . | . . . . . . . . . . . . . . . . Overloaded Fab Kills . | . . . . . . . . . . . . . . . . Hacking | -11 -10 -10 -9 -9 -9 -8 -8 -7 -6 -6 -6 -5 -5 -5 -4 --------- Run | Yrd Mat Min Mat Min Exi Min Mat Fac Fac Low Dat Pro Fac DSF Fac Machines Accessed 62 | . 7 . 15 . 5 . 9 3 4 . 4 . 7 . 8 Terminals 35 | . 4 . 9 . . . 5 2 2 . . . 6 . 7 Fabricators . | . . . . . . . . . . . . . . . . Repair Stations 5 | . 1 . 2 . . . 1 . . . . . . . 1 Recycling Units 8 | . 2 . 2 . . . 2 . 1 . . . 1 . . Scanalyzers 5 | . . . 2 . . . 1 1 1 . . . . . . Garrison Access . | . . . . . . . . . . . . . . . . Total Hacks 203 | . 21 . 43 . 50 . 22 5 4 . 31 . 12 . 15 Successful 146 | . 7 . 30 . 50 . 10 4 1 . 31 . 5 . 8 Failed 55 | . 14 . 12 . . . 12 . 3 . . . 7 . 7 Catastrophic 10 | . 3 . . . . . . . 1 . . . 3 . 3 Database Lockouts 2 | . . . 1 . . . . 1 . . . . . . . Manual 51 | . 13 . 16 . 1 . 6 1 2 . . . 6 . 6 Terminals 78 | . 13 . 26 . . . 12 3 2 . . . 10 . 12 Fabricators . | . . . . . . . . . . . . . . . . Repair Stations 20 | . 3 . 11 . . . 3 . . . . . . . 3 Recycling Units 13 | . 5 . 2 . . . 3 . 1 . . . 2 . . Scanalyzers 11 | . . . 4 . . . 4 2 1 . . . . . . Garrison Access . | . . . . . . . . . . . . . . . . Terminal Hacks 104 | . . . 10 . 50 . 3 2 . . 31 . 3 . 5 Record 60 | . . . . . 49 . . . . . 11 . . . . Part Schematic 13 | . . . . . . . . . . . 13 . . . . Robot Schematic 4 | . . . . . . . . . . . 4 . . . . Robot Analysis 4 | . . . 3 . . . 1 . . . . . . . . Prototype ID Bank 6 | . . . 3 . . . . . . . 3 . . . . Open DSF 4 | . . . . . . . . 1 . . . . 2 . 1 Level Access Points 2 | . . . 1 . . . . . . . . . . . 1 Branch Access Points 3 | . . . 1 . . . 1 1 . . . . . . . Machine Index 1 | . . . . . . . . . . . . . . . 1 Terminal Index 1 | . . . . . . . . . . . . . 1 . . Alert Level 1 | . . . . . . . . . . . . . . . 1 Unreport Threat 1 | . . . . . . . . . . . . . . . 1 Locate Traps 1 | . . . 1 . . . . . . . . . . . . Hauler Manifests 2 | . . . 1 . . . 1 . . . . . . . . Proto ID Catalog 1 | . . . . . 1 . . . . . . . . . . Fabricator Hacks . | . . . . . . . . . . . . . . . . Repair Station Hacks 15 | . 1 . 9 . . . 2 . . . . . . . 3 Scan Component 8 | . 1 . 5 . . . 1 . . . . . . . 1 Repair 6 | . . . 4 . . . 1 . . . . . . . 1 Refit 1 | . . . . . . . . . . . . . . . 1 Recycling Unit Hacks 9 | . 1 . 2 . . . 3 . 1 . . . 2 . . Report Inventory 7 | . 1 . 2 . . . 2 . 1 . . . 1 . . Retrieve Matter 2 | . . . . . . . 1 . . . . . 1 . . Scanalyzer 6 | . . . 3 . . . 2 1 . . . . . . . Insert Component 2 | . . . 2 . . . . . . . . . . . . Analyze 1 | . . . 1 . . . . . . . . . . . . Retrieve Study 3 | . . . . . . . 2 1 . . . . . . . Garrison Access Hacks . | . . . . . . . . . . . . . . . . Unauthorized Hacks 12 | . 5 . 6 . . . . 1 . . . . . . . Terminals 12 | . 5 . 6 . . . . 1 . . . . . . . Botnet 8 | . 1 . 6 . . . . 1 . . . . . . . Skim 4 | . 4 . . . . . . . . . . . . . . Fabricators . | . . . . . . . . . . . . . . . . Repair Stations . | . . . . . . . . . . . . . . . . Recycling Units . | . . . . . . . . . . . . . . . . Scanalyzers . | . . . . . . . . . . . . . . . . Garrison Access . | . . . . . . . . . . . . . . . . Data Cores Recovered . | . . . . . . . . . . . . . . . . Used . | . . . . . . . . . . . . . . . . Hacking Detections 40 | . 7 . 13 . . . 7 2 4 . . . 3 . 4 Full Trace Events 4 | . 2 . . . . . 2 . . . . . . . . Feedback Events . | . . . . . . . . . . . . . . . . Feedback Blocked . | . . . . . . . . . . . . . . . . Robot Schematics Acquired 4 | . . . . . . . . . . . 4 . . . . Robots Built . | . . . . . . . . . . . . . . . . Authchips . | . . . . . . . . . . . . . . . . Time . | . . . . . . . . . . . . . . . . Total Robot Build Rating . | . . . . . . . . . . . . . . . . Part Schematics Acquired 14 | . . . 1 . . . . . . . 13 . . . . Parts Built . | . . . . . . . . . . . . . . . . Authchips . | . . . . . . . . . . . . . . . . Time . | . . . . . . . . . . . . . . . . Total Part Build Rating . | . . . . . . . . . . . . . . . . Part Studies Acquired 3 | . . . . . . . 2 1 . . . . . . . Parts Repaired 6 | . . . 4 . . . 1 . . . . . . . 1 Time 210 | . . . 116 . . . 38 . . . . . . . 56 Parts Recycled . | . . . . . . . . . . . . . . . . Recycled Matter . | . . . . . . . . . . . . . . . . Retrieved Matter . | . . . . . . . . . . . . . . . . Retrieved Components . | . . . . . . . . . . . . . . . . Parts Scanalyzed 1 | . . . 1 . . . . . . . . . . . . Part Schematics Acquired 1 | . . . 1 . . . . . . . . . . . . Parts Damaged . | . . . . . . . . . . . . . . . . Bothacking | -11 -10 -10 -9 -9 -9 -8 -8 -7 -6 -6 -6 -5 -5 -5 -4 ------------ Run | Yrd Mat Min Mat Min Exi Min Mat Fac Fac Low Dat Pro Fac DSF Fac Used RIF Installer . | . . . . . . . . . . . . . . . . Robots Hacked . | . . . . . . . . . . . . . . . . Non-combat . | . . . . . . . . . . . . . . . . Combat . | . . . . . . . . . . . . . . . . Robot Hacks Applied . | . . . . . . . . . . . . . . . . Relay Couplers Released . | . . . . . . . . . . . . . . . . Fabnet Peak Effective % . | . . . . . . . . . . . . . . . . Robots Rewired . | . . . . . . . . . . . . . . . . Allies Hacked . | . . . . . . . . . . . . . . . . Hacks Repelled . | . . . . . . . . . . . . . . . . Allies | -11 -10 -10 -9 -9 -9 -8 -8 -7 -6 -6 -6 -5 -5 -5 -4 -------- Run | Yrd Mat Min Mat Min Exi Min Mat Fac Fac Low Dat Pro Fac DSF Fac Total Allies . | . . . . . . . . . . . . . . . . Largest Group . | . . . . . . . . . . . . . . . . Highest-Rated Group . | . . . . . . . . . . . . . . . . Highest-Rated Ally . | . . . . . . . . . . . . . . . . Initial Warlord ECA Mod 9 | . . . . . . . . . . . . . . . 9 Total Orders . | . . . . . . . . . . . . . . . . Ally Attacks . | . . . . . . . . . . . . . . . . Total Damage . | . . . . . . . . . . . . . . . . Kills . | . . . . . . . . . . . . . . . . Allies Corrupted . | . . . . . . . . . . . . . . . . Allies Melted . | . . . . . . . . . . . . . . . . Intel | -11 -10 -10 -9 -9 -9 -8 -8 -7 -6 -6 -6 -5 -5 -5 -4 ------- Run | Yrd Mat Min Mat Min Exi Min Mat Fac Fac Low Dat Pro Fac DSF Fac Active Infowar (turns) 11940 | 22 2278 258 5095 63 1391 294 227 227 328 158 38 274 527 136 624 Terrain 227 | . . . . . . . 227 . . . . . . . . Traps 1779 | . . . . . . . . . 109 158 38 203 511 136 624 Seismic 9401 | 22 2278 258 5095 63 1391 294 . . . . . . . . . ECM 537 | . . . . . . . . 227 219 . . 71 16 . 4 Robot Analysis Total 4 | . . . 3 . . . 1 . . . . . . . . Derelict Logs Recovered 3 | . . . . . . . . . . 1 . 2 . . . Drone Launches . | . . . . . . . . . . . . . . . . Drone Recoveries . | . . . . . . . . . . . . . . . . Exploration | -11 -10 -10 -9 -9 -9 -8 -8 -7 -6 -6 -6 -5 -5 -5 -4 ------------- Run | Yrd Mat Min Mat Min Exi Min Mat Fac Fac Low Dat Pro Fac DSF Fac Turns Passed 15388 | 121 2278 258 5121 63 1391 871 2810 256 328 158 38 274 527 136 758 Spaces Moved 9177 | 65 1147 160 1927 20 579 327 1018 440 548 371 91 561 829 130 964 Core 191 | 10 . . . . . . . . . . . . . . 181 Treads 5239 | 55 1147 160 1927 20 579 327 1018 6 . . . . . . . Legs . | . . . . . . . . . . . . . . . . Wheels . | . . . . . . . . . . . . . . . . Hover 106 | . . . . . . . . . . . . . . . 106 Flight 3641 | . . . . . . . . 434 548 371 91 561 829 130 677 Fastest Speed 39 | 50 160 160 160 240 240 240 200 50 42 42 42 42 42 42 39 Average Speed 140 | 150 160 160 227 256 240 240 222 52 42 42 42 42 42 42 60 Slowest Speed 600 | 200 160 160 320 320 240 240 240 200 42 42 42 42 42 42 600 Overloaded Moves . | . . . . . . . . . . . . . . . . Propulsion Burnouts . | . . . . . . . . . . . . . . . . Robots Hopped 1 | . . . . . . . . . . . . . . . 1 Potential Cave-ins . | . . . . . . . . . . . . . . . . Cave-ins Triggered . | . . . . . . . . . . . . . . . . Exploration Rate (%) 46 | 6 100 30 98 4 91 50 50 10 9 40 70 60 14 93 16 Regions Visited 15 Branch Regions 7 Pre-discovered Areas 2 | . . . . . 1 . . . . . 1 . . . . Known Exits Taken 3 | . . . 1 . . 1 . . . . . . 1 . . Unknown Exits Taken 11 | 1 1 1 . 1 1 . 1 1 1 1 1 1 . . . Scrap Searched 4 | . . . . . . . . . . 2 . 2 . . . Spaces Dug 59 | . . . 7 . . . 3 . 4 . . . 18 15 12 Terrain Destroyed 271 | . . . 7 . . 73 28 . 4 . . 19 18 102 20 Melee 35 | . . . 7 . . . 3 . 4 . . . 18 3 . Projectile 8 | . . . . . . . . . . . . . . . 8 AOE 228 | . . . . . . 73 25 . . . . 19 . 99 12 Terrain Rammed . | . . . . . . . . . . . . . . . . Walls Destroyed . | . . . . . . . . . . . . . . . . Machines Disabled . | . . . . . . . . . . . . . . . . Actions | -11 -10 -10 -9 -9 -9 -8 -8 -7 -6 -6 -6 -5 -5 -5 -4 --------- Run | Yrd Mat Min Mat Min Exi Min Mat Fac Fac Low Dat Pro Fac DSF Fac Total 10767 | 80 1426 160 2390 24 583 383 1351 470 625 372 90 581 957 166 1109 Wait 733 | . 109 . 208 . . 30 147 . 50 . . 7 89 . 93 Move 9160 | 64 1146 159 1926 19 578 326 1017 439 547 370 90 560 828 129 962 Hop 1 | . . . . . . . . . . . . . . . 1 Pick Up 112 | 6 27 . 41 . 1 . 20 1 4 . . . 2 1 9 Fast Attach 42 | 7 6 . 9 1 . . 9 1 1 1 . . 2 . 5 Attach 37 | . 4 . 6 . . 2 8 7 2 . . . 2 . 6 Detach . | . . . . . . . . . . . . . . . . Swap 56 | . 7 . 16 . . 4 14 3 4 . . 3 2 . 3 Drop 113 | . 20 . 36 . 4 . 21 17 4 1 . . . 1 9 Fire 385 | 3 101 . 116 4 . 19 96 1 . . . 2 . 25 18 Melee 91 | . 2 1 17 . . . 6 1 13 . . 9 32 10 . Ram 3 | . . . . . . . . . . . . . . . 3 Kick . | . . . . . . . . . . . . . . . . Crush 34 | . 4 . 15 . . 2 13 . . . . . . . . Escape Stasis . | . . . . . . . . . . . . . . . . Rewire . | . . . . . . . . . . . . . . . . Trap . | . . . . . . . . . . . . . . . . Miscellaneous . | . . . . . . . . . . . . . . . . Route ------- -11/Scrapyard -10/Materials (discovered 6 exits: *Mat x3 / [*Min x2] / [*Sub]) -10/Mines -9/Materials (discovered 5 exits: *Mat x3 / *Min / *Sto) -9/Mines -9/Exiles -8/Mines -8/Materials -7/Factory (discovered 4 exits: *Fac / Low x2 / DSF) -6/Factory -6/Lower Caves -6/Data Miner -5/Proximity Caves -5/Factory (discovered 2 exits: DSF / DSF) -5/DSF -4/Factory (discovered 4 exits: Res x4) History --------- Turn | Location | Event 2 | -11/Scrapyard | Met Revision 17 26 | -11/Scrapyard | Discovered new exit (range 15) 122 | -11/Scrapyard | Entered Materials 202 | -10/Materials | Discovered new exit (range 6) 316 | -10/Materials | Build established: Mutant 560 | -10/Materials | Discovered new exit (range 14) 984 | -10/Materials | Discovered new exit (range 12) 1228 | -10/Materials | Build established: Scavenger-Mutant 1319 | -10/Materials | Discovered new exit (range 14) 1573 | -10/Materials | Discovered new exit (range 9) 1918 | -10/Materials | Discovered new exit (range 15) 2014 | -10/Materials | Lost 4 parts (2n2w) 2248 | -10/Materials | Build established: Mutant 2400 | -10/Materials | Entered Mines 2627 | -10/Mines | Discovered new exit (range 7) 2658 | -10/Mines | Entered Materials 2658 | -9/Materials | Evolved 2 slots: Propulsion x1, Utility x1 2887 | -9/Materials | Identified exit to Mines 2887 | -9/Materials | Identified exit to Storage 3148 | -9/Materials | Build established: Scavenger-Mutant 3217 | -9/Materials | Repaired Lgt. Treads 3245 | -9/Materials | Repaired Seismic Detector 3278 | -9/Materials | Repaired Med. Armor Plating 3398 | -9/Materials | Discovered new exit (range 3) 4697 | -9/Materials | Central database locked down 5458 | -9/Materials | Discovered new exit (range 10) 5532 | -9/Materials | Build established: Mutant 6030 | -9/Materials | Build established: Scavenger-Mutant 6593 | -9/Materials | Discovered new exit (range 7) 6738 | -9/Materials | Identified exit to Materials 7195 | -9/Materials | Repaired Med. Armor Plating 7779 | -9/Materials | Entered Mines 7825 | -9/Mines | Deemed a non-threat by the Exiles lab entrance 7827 | -9/Mines | Discovered new exit (range 5) 7842 | -9/Mines | Entered Exiles 7844 | -9/Exiles | Build established: Mutant 7926 | -9/Exiles | Met 8R-AWN 7977 | -9/Exiles | Met EX-HEX 8078 | -9/Exiles | Met EX-BIN 8142 | -9/Exiles | Aligned with FarCom system 8145 | -9/Exiles | Given EX-Vault access code 8298 | -9/Exiles | Opened EX-Vault 8317 | -9/Exiles | Found Flying Fortress v7 8366 | -9/Exiles | Warned to stay clear of 0b10 Research branches 8448 | -9/Exiles | Met EX-DEC 8479 | -9/Exiles | Learned location of Zion (-7) 8744 | -9/Exiles | Visited The Gauntlet 9201 | -9/Exiles | Discovered new exit (range 10) 9233 | -9/Exiles | Left Exiles lab with Flying Fortress v7 9233 | -9/Exiles | Entered Mines 9824 | -8/Mines | Build established: Scavenger-Mutant 10024 | -8/Mines | Discovered exit to Materials (range 8) 10104 | -8/Mines | Entered Materials 10104 | -8/Materials | Evolved 2 slots: Propulsion x1, Utility x1 10387 | -8/Materials | Lost 3 parts (2u1w) 11808 | -8/Materials | Repaired Imp. Propulsion Shielding 12325 | -8/Materials | Discovered new exit (range 4) 12914 | -8/Materials | Entered Factory 12914 | -7/Factory | Evolved 2 slots: Utility x2 12991 | -7/Factory | Central database locked down 13037 | -7/Factory | Identified exit to DSF 13058 | -7/Factory | Identified exit to Lower Caves 13147 | -7/Factory | Discovered new exit (range 16) 13170 | -7/Factory | Entered another Factory area 13170 | -6/Factory | Evolved 2 slots: Propulsion x1, Utility x1 13231 | -6/Factory | Build established: Hacker-Mutant 13457 | -6/Factory | Discovered new exit (range 13) 13498 | -6/Factory | Entered Lower Caves 13587 | -6/Lower Caves | Learned Factory stockpile data 13649 | -6/Lower Caves | A Derelict revealed a hidden shortcut to meet someone special 13656 | -6/Lower Caves | Entered Data Miner 13656 | -6/Data Miner | Discovered new exit (range 6) 13664 | -6/Data Miner | Met Data Miner 13675 | -6/Data Miner | Learned location of Section 7 (-2) 13675 | -6/Data Miner | Acquired the access code to Warlord's prototype stash 13681 | -6/Data Miner | Received God Mode back door access code from Data Miner 13694 | -6/Data Miner | Entered Proximity Caves 13792 | -5/Proximity Caves | Spotted B-75 Beast 13816 | -5/Proximity Caves | Learned Factory emergency access door positions 13869 | -5/Proximity Caves | Learned Factory security intel 13960 | -5/Proximity Caves | Discovered new exit (range 13) 13968 | -5/Proximity Caves | Entered Factory 13968 | -5/Factory | Evolved 2 slots: Power x1, Utility x1 14180 | -5/Factory | Identified exit to DSF 14493 | -5/Factory | Identified exit to DSF 14495 | -5/Factory | Entered DSF 14509 | -5/DSF | Additional patrols routed to DSF 14581 | -5/DSF | Discovered new exit (range 15) 14625 | -5/DSF | Sterilization system engaged 14630 | -5/DSF | Lost 3 parts (1p2u) 14631 | -5/DSF | Entered Factory 14631 | -4/Factory | Evolved 2 slots: Propulsion x1, Utility x1 14701 | -4/Factory | Repaired Field Propulsion Drive 14955 | -4/Factory | Identified exit to Research 15286 | -4/Factory | System corruption reached 10% 15298 | -4/Factory | Released all parts (6) 15316 | -4/Factory | Core integrity fell below 50% 15328 | -4/Factory | Lost 8 parts (1n4u3w) 15355 | -4/Factory | Core integrity fell below 20% 15389 | -4/Factory | Destroyed by P-70 Sage with Tesla Rifle Last Messages --------------- 15313_ 57BII3YZ XL 15388_ Connecting with Terminal... >>Alert(Check) Current Alert Level: Low Security >>Alert(Purge) Purged threat record, alert level lowered. Map ----- +----------------------------------------------------+ | ??????????# # #?????????????????????? | | ??????????# + #?????????????????????? | | ??????????# # #?????????????????????? | | ??????????# # #?????????????????????? | | ??????????#######+###### #?????????????????????? | | ???????# ###### #### #?????????????????????? | | ???????# #?????????????????????? | | ???????# +?????????????????????? | | ???????# p #?????????????????????? | | ???????######## Y####pp #?????????????????????? | | ??????????????## p##??# #?????????????????????? | | ???????????????# #???# #?????????????????????? | | ???????????????# #???# #?????????????????????? | | ???????????????# #???# #?????????????????????? | | ???????????????# #???# #?????????????????????? | | ???????????????# #???# #?????????????????????? | | ???????????????# #???# #?????????????????????? | | ???????????????# #???# #?????????????????????? | | ???????????????# #???# ####??????????????????? | | ???????????????# % ????# #T #######+#??????????? | | ???????????????+ = ????# ?????????? | | ???????????????# ????# R ?????????? | | ???????????????# ????# " ?????????? | | ???????????????# ????# T #######??????????? | | ??????????????? ????# " #????????????????? | | ???????????????? ????# @ #????????????????? | | ???????????????????????# #????????????????? | | ???????????????????????# #??????????????? | | ???????????????????????# +??????????????? | | ???????????????????????# #??????????????? | | ???????????????????????##+####+##+#??????????????? | | ?????????????????????????????????????????????????? | | ?????????????????????????????????????????????????? | | ?????????????????????????????????????????????????? | | ?????????????????????????????????????????????????? | | ?????????????????????????????????????????????????? | | ?????????????????????????????????????????????????? | | ?????????????????????????????????C???????????????? | | ?????????????????????????????????C???????????????? | | ?????????????????????????????????g???????????????? | | ?????????????????????????????????g???????????????? | | ?????????????????????????????????g???????????????? | | ?????????????????????????????????????????????????? | | ?????????????????????????????????????????????????? | | ?????????????????????????????????????????????????? | | ?????????????????????????????????????????????????? | | ?????????????????????????????????????????????????? | | ?????????????????????????????????????????????????? | | ?????????????????????????????????????????????????? | | ?????????????????????????????????????????????????? | +----------------------------------------------------+ Best States ------------- Heat Dissipation 57 Energy Generation 28 Energy Capacity 340 Matter Stores 400 Matter Capacity 400 Sight Range 16 Terrain Scan Range 14 Terrain Scan Density 10 ECM Strength 1 Additional Mass Support 6 Armor Coverage 450 Propulsion Shielding 66 Utility Shielding 66 Evasion (%) 74 Recoil Reduction 4 Offensive Hacking 32 Defensive Hacking 10 Item Schematics ----------------- Lgt. Treads | -9/Materials | Scanalyzed Combat Drone Bay | -6/Data Miner | Free Lgt. Regenerative Plating | -6/Data Miner | Free Enh. Flexi-carbon Leg | -6/Data Miner | Free Exp. Heat Sink | -6/Data Miner | Free Plasma Sword | -6/Data Miner | Free Imp. Heavy Treads | -6/Data Miner | Free Adv. Focal Shield | -6/Data Miner | Free Imp. Dynamic Insulation System | -6/Data Miner | Free Adv. Datajack | -6/Data Miner | Free Adv. Cryofiber Web | -6/Data Miner | Free Quantum Rifle | -6/Data Miner | Free Nova Cannon | -6/Data Miner | Free Matter Neutralizer | -6/Data Miner | Free Robot Schematics ------------------ B-48 Gladiator | -6/Data Miner | Free H-66 Slayer | -6/Data Miner | Free G-50 Soldier | -6/Data Miner | Free D-63 Destroyer | -6/Data Miner | Free Fabricated ------------ Nothing Repaired ---------- Lgt. Treads | 38% | -9/Materials Seismic Detector | 25% | -9/Materials Med. Armor Plating | 26% | -9/Materials Med. Armor Plating | 9% | -9/Materials Imp. Propulsion Shielding | 10% | -8/Materials Field Propulsion Drive | 6% | -4/Factory Studied --------- Lgt. Treads | -8/Materials | Hacked Lgt. Deuterium Engine | -8/Materials | Hacked Lgt. Nuclear Core | -7/Factory | Hacked Alien Tech Used ----------------- None Achievements -------------- Fitting Room Hot Goods Leap Before You Look Prolific Hacker Safety First The Oracle Challenges ------------ None Game ------ Seed AlphaMediumStrikerail Manual? 0 Play Time 01:50:44 Cumulative 21.6 hours Start 2025.12.30 @ 11:29:00 End 2025.12.30 @ 13:17:58 Sessions 1 Manual Loads 0 Difficulty Rogue Special Mode None Game No. 31 Rogue 31 Adventurer 0 Explorer 0 Win Type - Total 0 Types 0/0/0/0/0/0/0/0/0/0 Lore% 17 Gallery% 22 Achievement% 20 Wizard Run 0 Options --------- Layout 1 ASCII 0 Keyboard 0 Movement Arrows Keybinds 0 Fullscreen 2 Font 32/SmallcapsGlow Map View 50x35 Zoom Use 0% Tactical HUD 1 Map Filters NONE Filters NONE Steam 1 RUN: 40158547-0ba1-4d90-8ec8-f7ac53e5d557